fUST/lending_fUST_20250619
["ID","MTS","AMOUNT","RATE_DAILY","PERIOD"]
[366499390,1750293038224,-502.07646515,0.000228,2]
[366499392,1750293038235,-500.0,0.000228,2]
[366499394,1750293038248,-259.31181051,0.00022852,2]
[366499397,1750293038258,-413.92404192,0.00022866,8]
[366499400,1750293038268,-153.0,0.00022909,2]
[366499401,1750293038277,-153.0,0.00022909,2]
[366499404,1750293038287,-153.0,0.00022909,2]
[366499407,1750293038296,-153.0,0.00022909,2]
[366499410,1750293038305,-153.0,0.00022909,2]
[366499413,1750293038315,-153.0,0.00022909,2]
[366499417,1750293038324,-153.0,0.00022909,2]
[366499420,1750293038334,-153.0,0.00022909,2]
[366499422,1750293038343,-153.0,0.00022909,2]
[366499425,1750293038352,-153.0,0.00022909,2]
[366499428,1750293038362,-153.0,0.00022909,2]
[366499431,1750293038371,-153.0,0.00022909,2]
[366499434,1750293038380,-153.0,0.00022909,2]
[366499437,1750293038390,-153.0,0.00022909,2]
[366499440,1750293038399,-153.0,0.00022909,2]
[366499443,1750293038409,-153.0,0.00022909,2]
[366499446,1750293038418,-153.0,0.00022909,2]
[366499449,1750293038427,-153.0,0.00022909,2]
[366499452,1750293038437,-153.0,0.00022909,2]
[366499455,1750293038446,-153.0,0.00022909,2]
[366499457,1750293038455,-153.0,0.00022909,2]
[366499459,1750293038464,-153.0,0.00022909,2]
[366499461,1750293038473,-153.0,0.00022909,2]
[366499463,1750293038482,-153.0,0.00022909,2]
[366499465,1750293038492,-153.0,0.00022909,2]
[366499467,1750293038501,-153.0,0.00022909,2]
[366499469,1750293038511,-153.0,0.00022909,2]
[366499471,1750293038520,-153.0,0.00022909,2]
[366499473,1750293038529,-153.0,0.00022909,2]
[366499475,1750293038539,-153.0,0.00022909,2]
[366499477,1750293038548,-153.0,0.00022909,2]
[366499479,1750293038557,-153.0,0.00022909,2]
[366499481,1750293038567,-153.0,0.00022909,2]
[366499483,1750293038576,-153.0,0.00022909,2]
[366499485,1750293038585,-153.0,0.00022909,2]
[366499487,1750293038594,-153.0,0.00022909,2]
[366499489,1750293038603,-153.0,0.00022909,2]
[366499491,1750293038613,-153.0,0.00022909,2]
[366499492,1750293038621,-153.0,0.00022909,2]
[366499494,1750293038631,-153.0,0.00022909,2]
[366499496,1750293038640,-153.0,0.00022909,2]
[366499498,1750293038649,-153.0,0.00022909,2]
[366499500,1750293038658,-153.0,0.00022909,2]
[366499502,1750293038667,-153.0,0.00022909,2]
[366499504,1750293038676,-153.0,0.00022909,2]
[366499506,1750293038685,-153.0,0.00022909,2]
[366499508,1750293038696,-153.0,0.00022909,2]
[366499510,1750293038709,-153.0,0.00022909,2]
[366499512,1750293038718,-153.0,0.00022909,2]
[366499514,1750293038727,-153.0,0.00022909,2]
[366499516,1750293038738,-153.0,0.00022909,2]
[366499518,1750293038747,-153.0,0.00022909,2]
[366499520,1750293038756,-153.0,0.00022909,2]
[366499522,1750293038765,-153.0,0.00022909,2]
[366499524,1750293038775,-153.0,0.00022909,2]
[366499526,1750293038785,-153.0,0.00022909,2]
[366499528,1750293038796,-153.0,0.00022909,2]
[366499530,1750293038805,-153.0,0.00022909,2]
[366499532,1750293038815,-153.0,0.00022909,2]
[366499534,1750293038824,-153.0,0.00022909,2]
[366499536,1750293038834,-153.0,0.00022909,2]
[366499538,1750293038843,-153.0,0.00022909,2]
[366499540,1750293038853,-153.0,0.00022909,2]
[366499542,1750293038862,-153.0,0.00022911,2]
[366499544,1750293038871,-153.0,0.00022911,2]
[366499546,1750293038881,-153.0,0.00022911,2]
[366499548,1750293038893,-153.0,0.00022911,2]
[366499550,1750293038902,-153.0,0.00022911,2]
[366499552,1750293038911,-153.0,0.00022911,2]
[366499554,1750293038920,-153.0,0.00022911,2]
[366499556,1750293038929,-153.0,0.00022911,2]
[366499558,1750293038939,-125.96036307,0.00023,3]
[366499598,1750293039376,-150.0,0.00019239,2]
[366499600,1750293039387,-168.26,0.00020155,2]
[366499602,1750293039397,-202.58128461,0.00021917,6]
[366499604,1750293039407,-63.86352779,0.00021917,6]
[366499611,1750293039492,-396.13647221,0.00021917,6]
[366499612,1750293039502,-460.0,0.00021917,6]
[366499614,1750293039511,-460.0,0.00021917,6]
[366499616,1750293039521,-460.0,0.00021917,6]
[366499618,1750293039530,-460.0,0.00022191,6]
[366499619,1750293039539,-460.0,0.00022191,6]
[366499621,1750293039549,-460.0,0.00022465,6]
[366499623,1750293039558,-468.24,0.00022465,6]
[366499624,1750293039567,-496.51,0.00022739,6]
[366499626,1750293039577,-710.02391816,0.00023,3]
[366499628,1750293039586,-424.70586748,0.00023,3]
[366499629,1750293039595,-413.92404192,0.00023003,8]
[366499631,1750293039604,-460.0,0.00023009,6]
[366499633,1750293039614,-460.0,0.00023009,6]
[366499635,1750293039623,-548.4,0.00023009,6]
[366499636,1750293039633,-460.0,0.00023009,6]
[366499638,1750293039642,-460.0,0.00023009,6]
[366499640,1750293039651,-490.45,0.00023009,6]
[366499642,1750293039660,-460.0,0.00023009,6]
[366499643,1750293039670,-460.0,0.00023013,6]
[366499645,1750293039680,-460.0,0.00023013,6]
[366499647,1750293039690,-1271.09,0.00023013,6]
[366499649,1750293039703,-224.11483354,0.00023013,6]
[366499651,1750293039712,-2878.66,0.00023013,6]
[366499652,1750293039722,-460.0,0.00023013,6]
[366499654,1750293039731,-1543.82,0.00023013,6]
[366499656,1750293039741,-2924.37,0.00023013,6]
[366499658,1750293039750,-631.88,0.00023013,6]
[366499659,1750293039759,-470.18,0.00023013,6]
[366499661,1750293039769,-2374.55,0.00023013,6]
[366499663,1750293039784,-504.24,0.00023013,6]
[366499665,1750293039793,-2712.71,0.00023013,6]
[366499667,1750293039803,-460.0,0.00023013,6]
[366499668,1750293039812,-460.0,0.00023013,6]
[366499670,1750293039822,-722.8,0.00023013,6]
[366499672,1750293039832,-460.0,0.00023013,6]
[366499674,1750293039841,-460.0,0.00023013,6]
[366499676,1750293039850,-460.0,0.00023013,6]
[366499677,1750293039859,-1004.58,0.00023013,6]
[366499679,1750293039868,-460.0,0.00023013,6]
[366499680,1750293039877,-403.43821571,0.00023013,6]
[366499682,1750293039887,-1830.04,0.00023013,6]
[366499684,1750293039896,-460.0,0.00023013,6]
[366499686,1750293039905,-1041.94,0.00023013,6]
[366499687,1750293039914,-460.0,0.00023013,6]
[366499689,1750293039924,-460.0,0.00023013,6]
[366499691,1750293039933,-976.22,0.00023013,6]
[366499693,1750293039942,-1127.34,0.00023013,6]
[366499695,1750293039952,-460.0,0.00023013,6]
[366499697,1750293039961,-460.0,0.00023013,6]
[366499699,1750293039971,-683.02,0.00023013,6]
[366499701,1750293039980,-477.68,0.00023013,6]
[366499702,1750293039990,-460.0,0.00023013,6]
[366499704,1750293040000,-460.0,0.00023013,6]
[366499706,1750293040009,-918.95,0.00023013,6]
[366499708,1750293040018,-300.0,0.00023013,2]
[366499710,1750293040027,-460.0,0.00023013,6]
[366499711,1750293040037,-460.0,0.00023013,6]
[366499713,1750293040047,-460.0,0.00023013,6]
[366499725,1750293040166,-460.0,0.00023013,6]
[366499727,1750293040175,-1390.16,0.00023013,6]
[366499729,1750293040184,-3296.11,0.00023013,6]
[366499730,1750293040194,-460.0,0.00023013,6]
[366499732,1750293040203,-1941.79,0.00023013,6]
[366499734,1750293040212,-460.0,0.00023013,6]
[366499736,1750293040223,-586.17,0.00023013,6]
[366499737,1750293040232,-765.23,0.00023013,6]
[366499739,1750293040242,-2199.63,0.00023013,6]
[366499741,1750293040252,-686.96,0.00023013,6]
[366499743,1750293040261,-496.51,0.00023013,6]
[366499745,1750293040270,-500.0,0.0002306,2]
[366499746,1750293040279,-500.0,0.00023068,2]
[366499748,1750293040288,-413.92404192,0.00023141,8]
[366499750,1750293040297,-169.78448818,0.00023212,2]
[366499752,1750293040306,-413.92404192,0.00023279,8]
[366499754,1750293040316,-460.0,0.00023283,6]
[366499755,1750293040325,-460.0,0.00023283,6]
[366499757,1750293040334,-548.4,0.00023283,6]
[366499759,1750293040343,-460.0,0.00023283,6]
[366499761,1750293040353,-607.36767274,0.00023283,6]
[366499762,1750293040362,-490.45,0.00023283,6]
[366499764,1750293040371,-460.0,0.00023283,6]
[366499766,1750293040380,-160.0,0.00023286,2]
[366499768,1750293040390,-460.0,0.00023287,6]
[366499769,1750293040399,-460.0,0.00023287,6]
[366499771,1750293040408,-1271.09,0.00023287,6]
[366499773,1750293040418,-2878.66,0.00023287,6]
[366499775,1750293040427,-460.0,0.00023287,6]
[366499777,1750293040437,-1543.82,0.00023287,6]
[366499778,1750293040447,-2924.37,0.00023287,6]
[366499780,1750293040456,-631.88,0.00023287,6]
[366499782,1750293040466,-470.18,0.00023287,6]
[366499784,1750293040475,-2374.55,0.00023287,6]
[366499786,1750293040484,-504.24,0.00023287,6]
[366499787,1750293040494,-2712.71,0.00023287,6]
[366499789,1750293040503,-460.0,0.00023287,6]
[366499791,1750293040513,-460.0,0.00023287,6]
[366499793,1750293040522,-722.8,0.00023287,6]
[366499795,1750293040531,-460.0,0.00023287,6]
[366499796,1750293040540,-460.0,0.00023287,6]
[366499798,1750293040549,-460.0,0.00023287,6]
[366499800,1750293040559,-1004.58,0.00023287,6]
[366499802,1750293040568,-460.0,0.00023287,6]
[366499803,1750293040577,-1830.04,0.00023287,6]
[366499805,1750293040587,-460.0,0.00023287,6]
[366499807,1750293040596,-1041.94,0.00023287,6]
[366499809,1750293040605,-460.0,0.00023287,6]
[366499811,1750293040614,-460.0,0.00023287,6]
[366499812,1750293040624,-976.22,0.00023287,6]
[366499814,1750293040634,-1127.34,0.00023287,6]
[366499816,1750293040643,-460.0,0.00023287,6]
[366499818,1750293040653,-460.0,0.00023287,6]
[366499820,1750293040662,-683.02,0.00023287,6]
[366499822,1750293040672,-477.68,0.00023287,6]
[366499823,1750293040681,-460.0,0.00023287,6]
[366499825,1750293040691,-460.0,0.00023287,6]
[366499827,1750293040704,-918.95,0.00023287,6]
[366499829,1750293040714,-300.0,0.00023287,2]
[366499832,1750293040723,-460.0,0.00023287,6]
[366499833,1750293040732,-460.0,0.00023287,6]
[366499835,1750293040742,-460.0,0.00023287,6]
[366499837,1750293040752,-1390.16,0.00023287,6]
[366499839,1750293040761,-3296.11,0.00023287,6]
[366499841,1750293040770,-460.0,0.00023287,6]
[366499843,1750293040781,-1941.79,0.00023287,6]
[366499844,1750293040791,-460.0,0.00023287,6]
[366499846,1750293040800,-586.17,0.00023287,6]
[366499848,1750293040809,-765.23,0.00023287,6]
[366499850,1750293040819,-2199.63,0.00023287,6]
[366499852,1750293040828,-686.96,0.00023287,6]
[366499853,1750293040837,-496.51,0.00023287,6]
[366499855,1750293040847,-168.0,0.00023331,2]
[366499857,1750293040856,-259.31181051,0.00023341,2]
[366499859,1750293040865,-500.0,0.00023348,2]
[366499861,1750293040875,-1000.0,0.00023348,2]
[366499862,1750293040883,-24549.49061129,0.00023352,2]
[366499864,1750293040892,-818.0,0.00023353,2]
[366499866,1750293040901,-500.0,0.00023357,2]
[366499868,1750293040910,-818.0,0.00023396,2]
[366499869,1750293040919,-413.92404192,0.00023417,9]
[366499871,1750293040929,-1966.017375,0.00023431,3]
[366499873,1750293040939,-168.0,0.00023434,2]
[366499875,1750293040947,-168.0,0.00023435,2]
[366499877,1750293040956,-168.0,0.0002345,2]
[366499879,1750293040965,-151.0,0.000235,6]
[366499880,1750293040975,-17468.45,0.000235,11]
[366499882,1750293040984,-161.31123895,0.000235,7]
[366499884,1750293040994,-800.0,0.00023525,2]
[366499886,1750293041003,-500.0,0.00023534,2]
[366499888,1750293041012,-174.6656913,0.00023534,2]
[366499889,1750293041021,-153.0,0.00023534,2]
[366499891,1750293041031,-835.98428123,0.00023545,2]
[366499893,1750293041040,-424.70586748,0.00023545,2]
[366499895,1750293041049,-413.92404192,0.00023555,9]
[366499896,1750293041059,-460.0,0.00023557,6]
[366499898,1750293041068,-460.0,0.00023557,6]
[366499900,1750293041077,-548.4,0.00023557,6]
[366499902,1750293041086,-460.0,0.00023557,6]
[366499904,1750293041095,-490.45,0.00023557,6]
[366499905,1750293041104,-460.0,0.00023557,6]
[366499907,1750293041113,-215.0738,0.00023557,2]
[366499909,1750293041122,-500.0,0.0002356,6]
[366499911,1750293041131,-153.01897109,0.0002356,6]
[366499913,1750293041140,-151.0,0.0002356,6]
[366499914,1750293041149,-151.0,0.0002356,6]
[366499916,1750293041158,-151.0,0.0002356,6]
[366499918,1750293041168,-151.0,0.0002356,6]
[366499920,1750293041178,-151.0,0.0002356,6]
[366499922,1750293041187,-156.71109524,0.0002356,6]
[366499923,1750293041196,-500.0,0.0002356,6]
[366499925,1750293041205,-151.0,0.0002356,6]
[366499927,1750293041215,-151.0,0.0002356,6]
[366499929,1750293041224,-500.0,0.0002356,6]
[366499931,1750293041233,-460.0,0.00023561,6]
[366499932,1750293041243,-460.0,0.00023561,6]
[366499934,1750293041253,-1271.09,0.00023561,6]
[366499936,1750293041262,-2878.66,0.00023561,6]
[366499938,1750293041274,-232.11930906,0.00023561,6]
[366499940,1750293041283,-1543.82,0.00023561,6]
[366499941,1750293041292,-2924.37,0.00023561,6]
[366499943,1750293041301,-631.88,0.00023561,6]
[366499945,1750293041310,-470.18,0.00023561,6]
[366499947,1750293041320,-2374.55,0.00023561,6]
[366499949,1750293041329,-504.24,0.00023561,6]
[366499950,1750293041338,-2712.71,0.00023561,6]
[366499953,1750293041350,-460.0,0.00023561,6]
[366499955,1750293041363,-460.0,0.00023561,6]
[366499957,1750293041378,-722.8,0.00023561,6]
[366499959,1750293041391,-460.0,0.00023561,6]
[366499961,1750293041403,-460.0,0.00023561,6]
[366499963,1750293041414,-460.0,0.00023561,6]
[366499965,1750293041427,-1004.58,0.00023561,6]
[366499967,1750293041439,-460.0,0.00023561,6]
[366499969,1750293041452,-1830.04,0.00023561,6]
[366499971,1750293041464,-460.0,0.00023561,6]
[366499973,1750293041477,-1041.94,0.00023561,6]
[366499976,1750293041489,-460.0,0.00023561,6]
[366499978,1750293041501,-460.0,0.00023561,6]
[366499980,1750293041515,-976.22,0.00023561,6]
[366499982,1750293041528,-1127.34,0.00023561,6]
[366499984,1750293041540,-460.0,0.00023561,6]
[366499986,1750293041551,-683.02,0.00023561,6]
[366499988,1750293041563,-477.68,0.00023561,6]
[366499990,1750293041574,-460.0,0.00023561,6]
[366499992,1750293041586,-460.0,0.00023561,6]
[366499994,1750293041598,-918.95,0.00023561,6]
[366499996,1750293041609,-300.0,0.00023561,2]
[366499998,1750293041622,-460.0,0.00023561,6]
[366500000,1750293041632,-460.0,0.00023561,6]
[366500002,1750293041642,-460.0,0.00023561,6]
[366500004,1750293041654,-1390.16,0.00023561,6]
[366500006,1750293041664,-3296.11,0.00023561,6]
[366500008,1750293041676,-460.0,0.00023561,6]
[366500010,1750293041688,-1941.79,0.00023561,6]
[366500012,1750293041705,-460.0,0.00023561,6]
[366500014,1750293041717,-586.17,0.00023561,6]
[366500016,1750293041729,-765.23,0.00023561,6]
[366500018,1750293041743,-2199.63,0.00023561,6]
[366500021,1750293041755,-686.96,0.00023561,6]
[366500023,1750293041769,-496.51,0.00023561,6]
[366500025,1750293041780,-7113.22981866,0.0002358,2]
[366500027,1750293041790,-500.0,0.00023587,6]
[366500028,1750293041800,-151.0,0.00023587,6]
[366500030,1750293041810,-151.0,0.00023587,6]
[366500032,1750293041823,-500.0,0.00023587,6]
[366500035,1750293041836,-151.0,0.00023587,6]
[366500037,1750293041849,-151.0,0.00023587,6]
[366500039,1750293041859,-500.0,0.00023587,6]
[366500040,1750293041869,-653.0,0.00023591,2]
[366500042,1750293041880,-2160.0,0.00023591,2]
[366500044,1750293041892,-406.0,0.00023591,2]
[366500047,1750293041905,-964.0,0.00023591,2]
[366500048,1750293041916,-53794.10610291,0.00023597,2]
[366500050,1750293041926,-1000.0,0.00023608,2]
[366500052,1750293041936,-800.0,0.00023608,2]
[366500054,1750293041947,-500.0,0.00023615,6]
[366500056,1750293041957,-500.0,0.00023615,6]
[366500058,1750293041968,-212.69819409,0.00023615,6]
[366500060,1750293041978,-198.0,0.00023615,6]
[366500062,1750293041988,-500.0,0.00023615,6]
[366500064,1750293041999,-500.0,0.00023642,6]
[366500065,1750293042010,-500.0,0.00023642,6]
[366500067,1750293042022,-500.0,0.00023642,6]
[366500069,1750293042033,-500.0,0.0002367,6]
[366500071,1750293042045,-500.0,0.0002367,6]
[366500073,1750293042056,-500.0,0.0002367,6]
[366500076,1750293042070,-500.0,0.00023672,2]
[366500078,1750293042082,-500.0,0.00023673,2]
[366500079,1750293042093,-500.0,0.00023673,2]
[366500081,1750293042104,-500.0,0.00023673,2]
[366500083,1750293042114,-500.0,0.00023673,2]
[366500085,1750293042125,-322.89050503,0.00023673,2]
[366500087,1750293042137,-500.0,0.00023673,2]
[366500089,1750293042148,-500.0,0.00023673,2]
[366500091,1750293042159,-500.0,0.00023673,2]
[366500093,1750293042170,-500.0,0.00023673,2]
[366500095,1750293042181,-500.0,0.00023673,2]
[366500097,1750293042191,-210.18673733,0.0002368,2]
[366500099,1750293042203,-6817.81263633,0.00023687,2]
[366500101,1750293042214,-124947.93190107,0.00023691,2]
[366500103,1750293042224,-413.92404192,0.00023693,9]
[366500105,1750293042235,-500.0,0.00023697,6]
[366500107,1750293042246,-500.0,0.00023697,6]
[366500109,1750293042258,-500.0,0.00023697,6]
[366500111,1750293042269,-151.0,0.000237,7]
[366500112,1750293042280,-168.0,0.000237,2]
[366500114,1750293042290,-800.0,0.0002372,2]
[366500116,1750293042301,-395.0,0.00023724,6]
[366500118,1750293042312,-453.0,0.00023724,6]
[366500120,1750293042323,-500.0,0.00023724,6]
[366500122,1750293042335,-168.17519988,0.00023735,2]
[366500124,1750293042346,-500.0,0.00023752,6]
[366500126,1750293042357,-987.778695,0.00023753,3]
[366500128,1750293042368,-600.0,0.00023773,2]
[366500130,1750293042379,-500.0,0.00023773,2]
[366500132,1750293042390,-502.67521021,0.00023773,2]
[366500134,1750293042401,-40505.88594462,0.00023788,2]
[366500136,1750293042411,-2118.64,0.000238,2]
[366500137,1750293042423,-4631.03254952,0.000238,3]
[366500139,1750293042434,-99972.57061531,0.000238,7]
[366500141,1750293042445,-667.2785748,0.000238,5]
[366500143,1750293042454,-16702.01611094,0.000238,2]
[366500145,1750293042463,-420.0,0.00023817,2]
[366500147,1750293042473,-2083.79543204,0.0002383,2]
[366500149,1750293042482,-259.31181051,0.0002383,2]
[366500151,1750293042492,-460.0,0.00023831,6]
[366500153,1750293042502,-460.0,0.00023831,6]
[366500155,1750293042511,-548.4,0.00023831,6]
[366500157,1750293042521,-460.0,0.00023831,6]
[366500159,1750293042530,-490.45,0.00023831,6]
[366500161,1750293042540,-460.0,0.00023831,6]
[366500163,1750293042549,-413.92404192,0.00023831,10]
[366500165,1750293042558,-460.0,0.00023835,6]
[366500167,1750293042570,-460.0,0.00023835,6]
[366500169,1750293042580,-1271.09,0.00023835,6]
[366500171,1750293042589,-2878.66,0.00023835,6]
[366500173,1750293042598,-1543.82,0.00023835,6]
[366500175,1750293042607,-2924.37,0.00023835,6]
[366500177,1750293042617,-631.88,0.00023835,6]
[366500178,1750293042625,-470.18,0.00023835,6]
[366500179,1750293042635,-2374.55,0.00023835,6]
[366500180,1750293042644,-504.24,0.00023835,6]
[366500181,1750293042653,-2712.71,0.00023835,6]
[366500182,1750293042662,-460.0,0.00023835,6]
[366500183,1750293042671,-460.0,0.00023835,6]
[366500184,1750293042680,-722.8,0.00023835,6]
[366500190,1750293042863,-460.0,0.00023835,6]
[366500192,1750293042876,-460.0,0.00023835,6]
[366500193,1750293042886,-460.0,0.00023835,6]
[366500194,1750293042895,-1004.58,0.00023835,6]
[366500195,1750293042905,-460.0,0.00023835,6]
[366500196,1750293042914,-1830.04,0.00023835,6]
[366500197,1750293042923,-460.0,0.00023835,6]
[366500199,1750293042932,-1041.94,0.00023835,6]
[366500201,1750293042942,-460.0,0.00023835,6]
[366500202,1750293042951,-460.0,0.00023835,6]
[366500203,1750293042960,-976.22,0.00023835,6]
[366500204,1750293042970,-1127.34,0.00023835,6]
[366500205,1750293042979,-460.0,0.00023835,6]
[366500206,1750293042989,-683.02,0.00023835,6]
[366500207,1750293042998,-477.68,0.00023835,6]
[366500208,1750293043007,-257.62819213,0.00023835,6]
[366500209,1750293043017,-460.0,0.00023835,6]
[366500210,1750293043026,-918.95,0.00023835,6]
[366500211,1750293043035,-300.0,0.00023835,2]
[366500212,1750293043044,-460.0,0.00023835,6]
[366500213,1750293043054,-460.0,0.00023835,6]
[366500214,1750293043063,-460.0,0.00023835,6]
[366500215,1750293043073,-1390.16,0.00023835,6]
[366500216,1750293043082,-3296.11,0.00023835,6]
[366500217,1750293043092,-460.0,0.00023835,6]
[366500218,1750293043101,-1941.79,0.00023835,6]
[366500219,1750293043110,-460.0,0.00023835,6]
[366500220,1750293043120,-586.17,0.00023835,6]
[366500221,1750293043129,-765.23,0.00023835,6]
[366500222,1750293043138,-2199.63,0.00023835,6]
[366500223,1750293043147,-686.96,0.00023835,6]
[366500224,1750293043156,-496.51,0.00023835,6]
[366500225,1750293043165,-168.0,0.00023836,2]
[366500226,1750293043175,-163.58333334,0.0002389,2]
[366500227,1750293043184,-63347.95290214,0.0002389,2]
[366500228,1750293043193,-151.0,0.0002389,7]
[366500229,1750293043203,-1500.0,0.00023896,2]
[366500230,1750293043212,-453341.58107093,0.00023899,4]
[366500234,1750293043285,-252.4,0.00021071,2]
[366500235,1750293043294,-345.09,0.00021917,6]
[366500263,1750293043558,-114.91,0.00021917,6]
[366500265,1750293043567,-460.0,0.00021917,6]
[366500267,1750293043577,-345.09,0.00021917,6]
[366506075,1750293143921,150.0,0.00018543,2]
[366506076,1750293220266,150.0,0.00018272,2]
[366506077,1750293222286,-150.0,0.00019142,2]
[366506078,1750293295886,150.0,0.00018529,2]
[366506079,1750293375360,150.0,0.0001847,2]
[366506080,1750293396455,2079.0,0.00019,2]
[366506081,1750293450905,150.0,0.00018469,2]
[366506082,1750293525857,150.0,0.0001872,2]
[366506083,1750293603938,150.0,0.00018404,2]
[366506084,1750293681305,150.0,0.00018541,2]
[366506085,1750293724813,163.421253,0.00013699,2]
[366506087,1750293757984,150.0,0.00018283,2]
[366506088,1750293834731,150.0,0.00018283,2]
[366506089,1750293841314,2189.0,0.00024657,120]
[366506090,1750293914893,150.0,0.00018285,2]
[366506091,1750293992381,150.0,0.0001835,2]
[366506092,1750294042161,-202.59,0.00019224,2]
[366506093,1750294042182,-303.88,0.00020097,2]
[366506094,1750294042201,-300.0,0.0002077,2]
[366506095,1750294042220,-217.62625734,0.00020771,2]
[366506096,1750294042240,-159.71073289,0.00020771,2]
[366506097,1750294042261,-500.0,0.00020771,2]
[366506098,1750294042282,-203.49625458,0.00020771,2]
[366506099,1750294051280,500.0,0.00022,30]
[366506100,1750294070162,150.0,0.00018363,2]
[366506102,1750294149727,150.0,0.00018376,2]
[366506103,1750294172156,-182.06,0.00019251,2]
[366506104,1750294172180,-273.09,0.00020126,2]
[366506105,1750294172200,-913.56117052,0.0002067,2]
[366506106,1750294172222,-188.13132764,0.00020716,2]
[366506107,1750294172243,-300.0,0.00020769,2]
[366506108,1750294172263,-500.0,0.0002077,2]
[366506109,1750294172285,-349.40491018,0.0002077,2]
[366506110,1750294172307,-500.0,0.0002077,2]
[366506111,1750294172328,-500.0,0.0002077,2]
[366506112,1750294172353,-500.0,0.0002077,2]
[366506113,1750294172376,-500.0,0.0002077,2]
[366506114,1750294172397,-158.80347419,0.0002077,2]
[366506115,1750294172419,-360.25268068,0.0002077,2]
[366506116,1750294172440,-500.0,0.0002077,2]
[366506117,1750294172462,-500.0,0.0002077,2]
[366506118,1750294172485,-500.0,0.0002077,2]
[366506119,1750294172509,-500.0,0.0002077,2]
[366506120,1750294172531,-393.86453564,0.0002077,2]
[366506121,1750294172556,-500.0,0.0002077,2]
[366506122,1750294172578,-408.00374542,0.0002077,2]
[366506123,1750294172601,-500.0,0.0002077,2]
[366506124,1750294172622,-500.0,0.0002077,2]
[366506125,1750294172643,-500.0,0.0002077,2]
[366506126,1750294172666,-500.0,0.0002077,2]
[366506127,1750294172686,-500.0,0.0002077,2]
[366506128,1750294172708,-500.0,0.0002077,2]
[366506129,1750294172730,-500.0,0.0002077,2]
[366506130,1750294172753,-500.0,0.0002077,2]
[366506131,1750294172779,-500.0,0.0002077,2]
[366506132,1750294172801,-500.0,0.0002077,2]
[366506133,1750294172823,-612.07271581,0.0002077,2]
[366506134,1750294172846,-500.0,0.0002077,2]
[366506135,1750294172870,-500.0,0.0002077,2]
[366506136,1750294172892,-500.0,0.0002077,2]
[366506137,1750294172915,-500.0,0.0002077,2]
[366506138,1750294172936,-500.0,0.0002077,2]
[366506139,1750294172957,-500.0,0.0002077,2]
[366506140,1750294172980,-500.0,0.0002077,2]
[366506141,1750294173003,-500.0,0.0002077,2]
[366506142,1750294173025,-500.0,0.0002077,2]
[366506143,1750294173048,-500.0,0.0002077,2]
[366506144,1750294173070,-500.0,0.0002077,2]
[366506145,1750294173092,-300.0,0.00020771,2]
[366506146,1750294173114,-24900.0,0.00020772,2]
[366506147,1750294173138,-184.944906,0.00020816,2]